fUSD/lending_fUSD_20250530
["ID","MTS","AMOUNT","RATE_DAILY","PERIOD"]
[363190531,1748619099984,-1379.11,0.00023561,2]
[363190532,1748619099994,-420.0,0.00023561,2]
[363190533,1748619100005,-420.0,0.00023561,2]
[363190534,1748619100015,-666.7,0.00023561,2]
[363190535,1748619100026,-741.8,0.00023561,2]
[363190536,1748619100036,-1319.43,0.00023561,2]
[363190537,1748619100045,-576.82,0.00023561,2]
[363190538,1748619100054,-693.89,0.00023561,2]
[363190539,1748619100066,-561.65,0.00023561,2]
[363190540,1748619100075,-1160.92,0.00023561,2]
[363190541,1748619100085,-1207.82,0.00023561,2]
[363190542,1748619100096,-472.93,0.00023561,2]
[363190543,1748619100106,-1166.17,0.00023561,2]
[363190544,1748619100115,-1168.26,0.00023561,2]
[363190545,1748619100125,-420.0,0.00023561,2]
[363190546,1748619100135,-420.0,0.00023561,2]
[363190547,1748619100144,-466.98,0.00023561,2]
[363190548,1748619100154,-784.43,0.00023561,2]
[363190549,1748619100163,-723.56,0.00023561,2]
[363190550,1748619100173,-1364.89,0.00023561,2]
[363190551,1748619100183,-801.75,0.00023561,2]
[363190552,1748619100193,-604.61,0.00023561,2]
[363190553,1748619100203,-862.94,0.00023561,2]
[363190554,1748619100214,-635.16,0.00023561,2]
[363190555,1748619100224,-587.51,0.00023561,2]
[363190556,1748619100234,-1137.25,0.00023561,2]
[363190557,1748619100244,-415.7532009,0.00023561,2]
[363190558,1748619100254,-786.55,0.00023561,2]
[363190559,1748619100267,-420.0,0.00023561,2]
[363190560,1748619100280,-523.95,0.00023561,2]
[363190561,1748619100290,-1160.03,0.00023561,2]
[363190562,1748619100300,-673.65,0.00023561,2]
[363190563,1748619100310,-931.25,0.00023561,2]
[363190564,1748619100319,-420.0,0.00023561,2]
[363190565,1748619100329,-420.0,0.00023561,2]
[363190566,1748619100339,-552.42,0.00023561,2]
[363190567,1748619100348,-459.7,0.00023561,2]
[363190568,1748619100358,-1724.07,0.00023561,2]
[363190569,1748619100368,-420.0,0.00023561,2]
[363190570,1748619100378,-600.48,0.00023561,2]
[363190571,1748619100388,-726.29,0.00023561,2]
[363190572,1748619100398,-167.67214446,0.00023561,2]
[363190573,1748619100409,-658.621131,0.00023561,7]
[363190574,1748619100419,-472.86,0.00023561,2]
[363190575,1748619100428,-1073.36,0.00023561,2]
[363190576,1748619100437,-420.0,0.00023561,2]
[363190577,1748619100447,-832.22,0.00023561,2]
[363190578,1748619100456,-658.621123,0.00023561,7]
[363190579,1748619100466,-576.09,0.00023561,2]
[363190580,1748619100475,-1371.43,0.00023561,2]
[363190581,1748619100485,-1079.44,0.00023561,2]
[363190582,1748619100495,-538.33,0.00023561,2]
[363190583,1748619100504,-420.0,0.00023561,2]
[363190584,1748619100514,-971.8,0.00023561,2]
[363190585,1748619100525,-590.55,0.00023561,2]
[363190586,1748619100535,-476.32,0.00023561,2]
[363190587,1748619100545,-550.23,0.00023561,2]
[363190588,1748619100555,-523.75,0.00023561,2]
[363190589,1748619100566,-420.0,0.00023561,2]
[363190590,1748619100576,-2381.24,0.00023561,2]
[363190591,1748619100586,-420.0,0.00023561,2]
[363190592,1748619100596,-420.0,0.00023561,2]
[363190593,1748619100605,-420.0,0.00023561,2]
[363190594,1748619100615,-1073.24,0.00023561,2]
[363190595,1748619100625,-659.08,0.00023561,2]
[363190596,1748619100635,-420.0,0.00023561,2]
[363190597,1748619100644,-420.0,0.00023561,2]
[363190598,1748619100654,-535.46,0.00023561,2]
[363190599,1748619100664,-420.0,0.00023561,2]
[363190600,1748619100674,-569.05,0.00023561,2]
[363190601,1748619100683,-420.0,0.00023561,2]
[363190602,1748619100693,-808.94,0.00023561,2]
[363190603,1748619100703,-1940.81,0.00023561,2]
[363190604,1748619100712,-463.09,0.00023561,2]
[363190605,1748619100722,-627.54,0.00023561,2]
[363190606,1748619100732,-420.0,0.00023561,2]
[363190607,1748619100742,-1123.75,0.00023561,2]
[363190608,1748619100752,-539.2,0.00023561,2]
[363190609,1748619100761,-487.89,0.00023561,2]
[363190610,1748619100771,-420.0,0.00023561,2]
[363190611,1748619100781,-420.0,0.00023561,2]
[363190612,1748619100791,-1448.39,0.00023561,2]
[363190613,1748619100804,-1124.04,0.00023561,2]
[363190614,1748619100814,-553.55,0.00023561,2]
[363190615,1748619100823,-1287.465475,0.00023561,7]
[363190616,1748619100833,-420.0,0.00023561,2]
[363190617,1748619100842,-1287.46547284,0.00023561,7]
[363190618,1748619100852,-1053.3,0.00023561,2]
[363190619,1748619100861,-584.13,0.00023561,2]
[363190620,1748619100871,-420.0,0.00023561,2]
[363190621,1748619100880,-1192.82,0.00023561,2]
[363190622,1748619100890,-420.0,0.00023561,2]
[363190623,1748619100899,-613.48,0.00023561,2]
[363190624,1748619100909,-420.0,0.00023561,2]
[363190625,1748619100918,-324.56292373,0.00023561,2]
[363190626,1748619100928,-491.19,0.00023561,2]
[363190627,1748619100937,-466.46,0.00023561,2]
[363190628,1748619100946,-561.99,0.00023561,2]
[363190629,1748619100955,-1678.06,0.00023561,2]
[363190630,1748619100965,-420.0,0.00023561,2]
[363190631,1748619100975,-420.0,0.00023561,2]
[363190632,1748619100984,-1400.08,0.00023561,2]
[363190633,1748619100994,-600.46,0.00023561,2]
[363190634,1748619101003,-626.74,0.00023561,2]
[363190635,1748619101012,-729.19,0.00023561,2]
[363190636,1748619101023,-420.0,0.00023561,2]
[363190637,1748619101033,-849.19,0.00023561,2]
[363190638,1748619101043,-1178.79,0.00023561,2]
[363190639,1748619101052,-420.0,0.00023561,2]
[363190640,1748619101062,-1833.03,0.00023561,2]
[363190641,1748619101072,-558.24,0.00023561,2]
[363190642,1748619101080,-633.87,0.00023561,2]
[363190643,1748619101090,-420.0,0.00023561,2]
[363190644,1748619101100,-465.46,0.00023561,2]
[363190645,1748619101110,-1085.24,0.00023561,2]
[363190646,1748619101120,-420.0,0.00023561,2]
[363190647,1748619101130,-3634.58,0.00023561,2]
[363190648,1748619101141,-2016.38,0.00023561,2]
[363190649,1748619101151,-609.8,0.00023561,2]
[363190650,1748619101162,-180.808035,0.00023561,7]
[363190651,1748619101173,-420.0,0.00023561,2]
[363190652,1748619101183,-180.808035,0.00023561,7]
[363190653,1748619101193,-1168.36,0.00023561,2]
[363190654,1748619101202,-5361.86,0.00023561,2]
[363190655,1748619101212,-420.0,0.00023561,2]
[363190656,1748619101224,-2127.16,0.00023561,2]
[363190657,1748619101235,-180.808035,0.00023561,7]
[363190658,1748619101245,-1484.06,0.00023561,2]
[363190659,1748619101254,-180.808037,0.00023561,7]
[363190660,1748619101264,-420.0,0.00023561,2]
[363190661,1748619101277,-1109.67,0.00023561,2]
[363190662,1748619101289,-904.81,0.00023561,2]
[363190663,1748619101298,-614.8,0.00023561,2]
[363190664,1748619101308,-575.02,0.00023561,2]
[363190665,1748619101319,-562.44,0.00023561,2]
[363190666,1748619101329,-674.8,0.00023561,2]
[363190667,1748619101340,-2741.562088,0.00023561,7]
[363190668,1748619101350,-2741.562088,0.00023561,7]
[363190669,1748619101360,-1824.08,0.00023561,2]
[363190670,1748619101370,-420.0,0.00023561,2]
[363190671,1748619101379,-2741.562088,0.00023561,7]
[363190672,1748619101388,-420.0,0.00023561,2]
[363190673,1748619101398,-2741.562082,0.00023561,7]
[363190674,1748619101408,-490.58,0.00023561,2]
[363190675,1748619101417,-7075.98,0.00023561,2]
[363190676,1748619101426,-420.0,0.00023561,2]
[363190677,1748619101435,-1096.87,0.00023561,2]
[363190678,1748619101445,-723.21,0.00023561,2]
[363190679,1748619101454,-420.0,0.00023561,2]
[363190680,1748619101464,-1561.66,0.00023561,2]
[363190681,1748619101473,-420.0,0.00023561,2]
[363190682,1748619101483,-9812.16,0.00023561,2]
[363190683,1748619101492,-1075.43,0.00023561,2]
[363190684,1748619101501,-1429.73,0.00023561,2]
[363190685,1748619101511,-622.82,0.00023561,2]
[363190686,1748619101522,-11863.32,0.00023561,2]
[363190687,1748619101531,-915.42,0.00023561,2]
[363190688,1748619101541,-1946.94,0.00023561,2]
[363190689,1748619101550,-420.0,0.00023561,2]
[363190690,1748619101560,-594.91,0.00023561,2]
[363190691,1748619101571,-797.36,0.00023561,2]
[363190692,1748619101581,-1167.97,0.00023561,2]
[363190693,1748619101591,-5682.0,0.00023561,2]
[363190694,1748619101600,-524.77,0.00023561,2]
[363190695,1748619101611,-1550.77,0.00023561,2]
[363190696,1748619101620,-420.0,0.00023561,2]
[363190697,1748619101630,-974.63,0.00023561,2]
[363190698,1748619101640,-655.87,0.00023561,2]
[363190699,1748619101650,-600.66,0.00023561,2]
[363190700,1748619101659,-702.81,0.00023561,2]
[363190701,1748619101668,-1024.75,0.00023561,2]
[363190702,1748619101678,-609.69,0.00023561,2]
[363190703,1748619101687,-1076.37,0.00023561,2]
[363190704,1748619101697,-420.0,0.00023561,2]
[363190705,1748619101706,-610.074716,0.00023561,7]
[363190706,1748619101715,-464.14,0.00023561,2]
[363190707,1748619101725,-420.0,0.00023561,2]
[363190708,1748619101735,-610.074708,0.00023561,7]
[363190709,1748619101745,-1708.68,0.00023561,2]
[363190710,1748619101755,-476.72,0.00023561,2]
[363190711,1748619101765,-726.29,0.00023561,2]
[363190712,1748619101776,-1013.34,0.00023561,2]
[363190713,1748619101786,-9498.11,0.00023561,2]
[363190714,1748619101796,-850.36,0.00023561,2]
[363190715,1748619101809,-1568.21,0.00023561,2]
[363190716,1748619101819,-829.87,0.00023561,2]
[363190717,1748619101828,-997.73,0.00023561,2]
[363190718,1748619101838,-717.62,0.00023561,2]
[363190719,1748619101849,-862.79,0.00023561,2]
[363190720,1748619101859,-2137.81,0.00023561,2]
[363190721,1748619101868,-657.91,0.00023561,2]
[363190722,1748619101879,-985.32,0.00023561,2]
[363190723,1748619101889,-420.0,0.00023561,2]
[363190724,1748619101899,-420.0,0.00023561,2]
[363190725,1748619101909,-541.52,0.00023561,2]
[363190726,1748619101918,-1399.41,0.00023561,2]
[363190727,1748619101927,-486.44990018,0.00023561,2]
[363190728,1748619101938,-1150.73,0.00023561,2]
[363190729,1748619101947,-420.0,0.00023561,2]
[363190730,1748619101956,-2296.95,0.00023561,2]
[363190731,1748619101967,-420.0,0.00023561,2]
[363190732,1748619101977,-795.59,0.00023561,2]
[363190733,1748619101988,-682.72,0.00023561,2]
[363190734,1748619101998,-575.16,0.00023561,2]
[363190735,1748619102007,-3116.89,0.00023561,2]
[363190736,1748619102016,-1061.77,0.00023561,2]
[363190737,1748619102029,-1233.85,0.00023561,2]
[363190738,1748619102039,-420.0,0.00023561,2]
[363190739,1748619102050,-11481.25,0.00023561,2]
[363190740,1748619102060,-426.85,0.00023561,2]
[363190741,1748619102070,-1096.82,0.00023561,2]
[363190742,1748619102080,-857.17,0.00023561,2]
[363190743,1748619102090,-1626.19,0.00023561,2]
[363190744,1748619102099,-420.0,0.00023561,2]
[363190745,1748619102109,-634.02,0.00023561,2]
[363190746,1748619102119,-1283.49,0.00023561,2]
[363190747,1748619102129,-1507.45,0.00023561,2]
[363190748,1748619102139,-532.67,0.00023561,2]
[363190749,1748619102148,-441.96,0.00023561,2]
[363190750,1748619102158,-3197.32,0.00023561,2]
[363190751,1748619102168,-1018.57,0.00023561,2]
[363190752,1748619102179,-1122.87,0.00023561,2]
[363190753,1748619102189,-2066.87,0.00023561,2]
[363190754,1748619102199,-489.48,0.00023561,2]
[363190755,1748619102209,-461.31,0.00023561,2]
[363190756,1748619102219,-429.62,0.00023561,2]
[363190757,1748619102229,-3670.01,0.00023561,2]
[363190758,1748619102239,-420.0,0.00023561,2]
[363190759,1748619102248,-805.58,0.00023561,2]
[363190760,1748619102258,-1386.9,0.00023561,2]
[363190761,1748619102268,-894.1,0.00023561,2]
[363190762,1748619102281,-2960.24,0.00023561,2]
[363190763,1748619102291,-1963.11,0.00023561,2]
[363190764,1748619102301,-906.34,0.00023561,2]
[363190765,1748619102310,-7808.56,0.00023561,2]
[363190766,1748619102320,-1068.95,0.00023561,2]
[363190767,1748619102330,-975.57,0.00023561,2]
[363190768,1748619102339,-1446.02,0.00023561,2]
[363190769,1748619102349,-1309.89,0.00023561,2]
[363190770,1748619102358,-5878.54,0.00023561,2]
[363190771,1748619102368,-591.35,0.00023561,2]
[363190772,1748619102378,-4452.28,0.00023561,2]
[363190773,1748619102388,-8491.51,0.00023561,2]
[363190774,1748619102397,-982.46,0.00023561,2]
[363190775,1748619102407,-958.4,0.00023561,2]
[363190776,1748619102417,-139506.04,0.00023561,2]
[363190777,1748619102427,-1343.03,0.00023561,2]
[363190778,1748619102436,-1033.36,0.00023561,2]
[363190779,1748619102446,-657.44,0.00023561,2]
[363190780,1748619102455,-420.0,0.00023561,2]
[363190781,1748619102465,-453.46,0.00023561,2]
[363190782,1748619102475,-1032.71,0.00023561,2]
[363190783,1748619102484,-1623.73,0.00023561,2]
[363190784,1748619102493,-458.54,0.00023561,2]
[363190785,1748619102503,-3547.4,0.00023561,2]
[363190786,1748619102512,-982.85,0.00023561,2]
[363190787,1748619102524,-1005.97,0.00023561,2]
[363190788,1748619102534,-1623.36,0.00023561,2]
[363190789,1748619102544,-3804.58,0.00023561,2]
[363190790,1748619102553,-37354.79,0.00023561,2]
[363190791,1748619102564,-1215.02,0.00023561,2]
[363190792,1748619102574,-937.17,0.00023561,2]
[363190793,1748619102584,-753.84,0.00023561,2]
[363190794,1748619102594,-418.00165374,0.00023561,2]
[363190795,1748619102603,-10069.56,0.00023561,2]
[363190796,1748619102613,-2424.56,0.00023561,2]
[363190797,1748619102622,-1684.99,0.00023561,2]
[363190798,1748619102632,-519.37,0.00023561,2]
[363190799,1748619102641,-7476.47,0.00023561,2]
[363190800,1748619102650,-628.41,0.00023561,2]
[363190801,1748619102660,-422.51,0.00023561,2]
[363190802,1748619102670,-868.93,0.00023561,2]
[363190803,1748619102679,-420.0,0.00023561,2]
[363190804,1748619102689,-1449.88,0.00023561,2]
[363190805,1748619102698,-14516.45,0.00023561,2]
[363190806,1748619102708,-4266.56,0.00023561,2]
[363190807,1748619102719,-830.49,0.00023561,2]
[363190808,1748619102728,-1548.49,0.00023561,2]
[363190809,1748619102738,-1978.38,0.00023561,2]
[363190810,1748619102748,-1884.76,0.00023561,2]
[363190811,1748619102757,-542.86,0.00023561,2]
[363190812,1748619102766,-593.44,0.00023561,2]
[363190813,1748619102778,-510.86,0.00023561,2]
[363190814,1748619102788,-420.0,0.00023561,2]
[363190815,1748619102798,-1709.24,0.00023561,2]
[363190816,1748619102810,-2758.03,0.00023561,2]
[363190817,1748619102819,-420.0,0.00023561,2]
[363190818,1748619102829,-29722.14,0.00023561,2]
[363190819,1748619102840,-881.72,0.00023561,2]
[363190820,1748619102849,-1169.42,0.00023561,2]
[363190821,1748619102858,-1406.27,0.00023561,2]
[363190822,1748619102869,-826.36,0.00023561,2]
[363190823,1748619102879,-1544.23,0.00023561,2]
[363190824,1748619102888,-1175.33,0.00023561,2]
[363190825,1748619102898,-3295.64,0.00023561,2]
[363190826,1748619102907,-1761.11,0.00023561,2]
[363190827,1748619102918,-660.71,0.00023561,2]
[363190828,1748619102930,-3573.53,0.00023561,2]
[363190829,1748619102941,-1034.84,0.00023561,2]
[363190830,1748619102951,-738.85,0.00023561,2]
[363190831,1748619102960,-1151.03,0.00023561,2]
[363190832,1748619102971,-9251.83,0.00023561,2]
[363190833,1748619102980,-772.03,0.00023561,2]
[363190834,1748619102990,-420.0,0.00023561,2]
[363190835,1748619102999,-490.63,0.00023561,2]
[363190836,1748619103009,-720.83,0.00023561,2]
[363190837,1748619103018,-1360.32,0.00023561,2]
[363190838,1748619103029,-723.88,0.00023561,2]
[363190839,1748619103039,-567.24,0.00023561,2]
[363190840,1748619103049,-2486.32,0.00023561,2]
[363190841,1748619103058,-4470.51,0.00023561,2]
[363190842,1748619103067,-1446.13,0.00023561,2]
[363190843,1748619103077,-2304.2,0.00023561,2]
[363190844,1748619103087,-1389.12,0.00023561,2]
[363190845,1748619103096,-420.0,0.00023561,2]
[363190846,1748619103106,-1054.71,0.00023561,2]
[363190847,1748619103115,-990.01,0.00023561,2]
[363190848,1748619103124,-1680.37,0.00023561,2]
[363190849,1748619103134,-521.76,0.00023561,2]
[363190850,1748619103143,-4095.54,0.00023561,2]
[363190851,1748619103153,-1486.66,0.00023561,2]
[363190852,1748619103163,-1336.51,0.00023561,2]
[363190853,1748619103172,-1487.37,0.00023561,2]
[363190854,1748619103182,-2771.35,0.00023561,2]
[363190855,1748619103191,-4189.49,0.00023561,2]
[363190856,1748619103205,-629.45,0.00023561,2]
[363190857,1748619103214,-2997.14,0.00023561,2]
[363190858,1748619103224,-1125.7,0.00023561,2]
[363190859,1748619103234,-1026.77,0.00023561,2]
[363190860,1748619103243,-614.16,0.00023561,2]
[363190861,1748619103252,-7561.37,0.00023561,2]
[363190862,1748619103262,-420.0,0.00023561,2]
[363190863,1748619103272,-1258.89,0.00023561,2]
[363190864,1748619103282,-1075.29,0.00023561,2]
[363190865,1748619103292,-760.57,0.00023561,2]
[363190866,1748619103302,-3180.63,0.00023561,2]
[363190867,1748619103510,-1927.78,0.00023561,2]
[363190868,1748619103520,-1656.75,0.00023561,2]
[363190869,1748619103530,-420.0,0.00023561,2]
[363190870,1748619103540,-641.68,0.00023561,2]
[363190871,1748619103549,-1318.91,0.00023561,2]
[363190872,1748619103559,-1139.98,0.00023561,2]
[363190873,1748619103568,-798.56,0.00023561,2]
[363190874,1748619103578,-1082.24,0.00023561,2]
[363190875,1748619103588,-718.05,0.00023561,2]
[363190876,1748619103598,-1074.24,0.00023561,2]
[363190877,1748619103610,-3419.97,0.00023561,2]
[363190878,1748619103621,-1239.27,0.00023561,2]
[363190879,1748619103631,-671.13,0.00023561,2]
[363190880,1748619103642,-1848.95,0.00023561,2]
[363190881,1748619103652,-2486.27,0.00023561,2]
[363190882,1748619103663,-420.0,0.00023561,2]
[363190883,1748619103674,-420.0,0.00023561,2]
[363190884,1748619103683,-1822.33,0.00023561,2]
[363190885,1748619103693,-4083.38,0.00023561,2]
[363190886,1748619103703,-1501.86,0.00023561,2]
[363190887,1748619103714,-1358.16,0.00023561,2]
[363190888,1748619103724,-4025.56,0.00023561,2]
[363190889,1748619103734,-4868.11,0.00023561,2]
[363190890,1748619103744,-2713.7,0.00023561,2]
[363190891,1748619103754,-310.580002,0.00023561,2]
[363190892,1748619103764,-489.31,0.00023561,2]
[363190893,1748619103774,-742.91,0.00023561,2]
[363190894,1748619103784,-703.73,0.00023561,2]
[363190895,1748619103794,-802.33,0.00023561,2]
[363190896,1748619103809,-937.93,0.00023561,2]
[363190897,1748619103820,-2531.82,0.00023561,2]
[363190898,1748619103831,-420.0,0.00023561,2]
[363190899,1748619103841,-420.0,0.00023561,2]
[363190900,1748619103852,-830.27,0.00023561,2]
[363190901,1748619103862,-420.0,0.00023561,2]
[363190902,1748619103873,-7051.39,0.00023561,2]
[363190903,1748619103883,-622.77,0.00023561,2]
[363190904,1748619103893,-961.82,0.00023561,2]
[363190905,1748619103904,-1538.8,0.00023561,2]
[363190906,1748619103914,-19030.44,0.00023561,2]
[363190907,1748619103925,-1325.56,0.00023561,2]
[363190908,1748619103935,-420.0,0.00023561,2]
[363190909,1748619103947,-2716.47,0.00023561,2]
[363190910,1748619103956,-1264.47,0.00023561,2]
[363190911,1748619103966,-420.0,0.00023561,2]
[363190912,1748619103976,-702.43,0.00023561,2]
[363190913,1748619103986,-735.86,0.00023561,2]
[363190914,1748619103996,-760.22,0.00023561,2]
[363190915,1748619104007,-2783.11,0.00023561,2]
[363190916,1748619104018,-676.42,0.00023561,2]
[363190917,1748619104028,-734.54,0.00023561,2]
[363190918,1748619104038,-1663.09,0.00023561,2]
[363190919,1748619104047,-6908.64,0.00023561,2]
[363190920,1748619104057,-450.49,0.00023561,2]
[363190921,1748619104067,-1803.22,0.00023561,2]
[363190922,1748619104077,-420.0,0.00023561,2]
[363190923,1748619104087,-807.7,0.00023561,2]
[363190924,1748619104097,-3069.28,0.00023561,2]
[363190925,1748619104107,-466.47,0.00023561,2]
[363190926,1748619104117,-420.0,0.00023561,2]
[363190927,1748619104127,-420.0,0.00023561,2]
[363190928,1748619104137,-2553.4,0.00023561,2]
[363190929,1748619104146,-1271.23,0.00023561,2]
[363190930,1748619104156,-1013.92,0.00023561,2]
[363190931,1748619104165,-2875.31,0.00023561,2]
[363190932,1748619104175,-500.0,0.0002357,2]
[363190933,1748619104184,-1000.0,0.0002357,2]
[363190934,1748619104194,-2351.0,0.00023597,2]
[363190935,1748619104203,-64216.83,0.000236,2]
[363190936,1748619104213,-2000.0,0.00023616,2]
[363190937,1748619104223,-2000.0,0.00023616,2]
[363190938,1748619104233,-1006.05116022,0.00023616,2]
[363190939,1748619104243,-4049.5936825,0.00023624,9]
[363190940,1748619104252,-150.0,0.00023625,2]
[363190941,1748619104263,-980.858598,0.00023625,2]
[363190942,1748619104272,-1078.45113,0.00023625,2]
[363190943,1748619104285,-1000.0,0.00023634,7]
[363190944,1748619104295,-1000.0,0.00023634,7]
[363190945,1748619104305,-1000.0,0.00023634,7]
[363190946,1748619104315,-1000.0,0.00023634,7]
[363190947,1748619104324,-1000.0,0.00023634,7]
[363190948,1748619104333,-1000.0,0.00023634,7]
[363190949,1748619104343,-1000.0,0.00023634,7]
[363190950,1748619104353,-1000.0,0.00023634,7]
[363190951,1748619104363,-1000.0,0.00023634,7]
[363190952,1748619104375,-1000.0,0.00023634,7]
[363190953,1748619104386,-1000.0,0.00023634,2]
[363190954,1748619104396,-1000.0,0.00023634,2]
[363190955,1748619104407,-1000.0,0.00023634,2]
[363190956,1748619104419,-1000.0,0.00023634,2]
[363190957,1748619104430,-1000.0,0.00023634,2]
[363190958,1748619104441,-1000.0,0.00023634,2]
[363190959,1748619104451,-1000.0,0.00023634,2]
[363190960,1748619104461,-1000.0,0.00023634,2]
[363190961,1748619104471,-1000.0,0.00023634,2]
[363190962,1748619104481,-1000.0,0.00023634,2]
[363190963,1748619104490,-1215.52664,0.0002365,2]
[363190964,1748619104500,-200.0,0.00023781,2]
[363190965,1748619104510,-158.59324495,0.0002379,2]
[363190966,1748619104519,-209.2,0.000238,2]
[363190967,1748619104531,-150.0,0.00023825,2]
[363190968,1748619104540,-157.819929,0.00023825,2]
[363190969,1748619104550,-980.858598,0.00023825,2]
[363190970,1748619104559,-1078.45113,0.00023825,2]
[363190971,1748619104570,-4049.5936825,0.00023831,10]
[363190972,1748619104579,-300.0,0.00023834,2]
[363190973,1748619104589,-300.0,0.00023834,2]
[363190974,1748619104599,-151.0,0.00023835,7]
[363190975,1748619104608,-280.934481,0.00023835,7]
[363190976,1748619104618,-151.0,0.00023835,7]
[363190977,1748619104627,-420.0,0.00023835,2]
[363190978,1748619104637,-420.0,0.00023835,2]
[363190979,1748619104647,-579.42,0.00023835,2]
[363190980,1748619104656,-441.8,0.00023835,2]
[363190981,1748619104666,-591.36,0.00023835,2]
[363190982,1748619104676,-451.1,0.00023835,2]
[363190983,1748619104685,-468.16,0.00023835,2]
[363190984,1748619104695,-420.0,0.00023835,2]
[363190985,1748619104705,-420.0,0.00023835,2]
[363190986,1748619104715,-420.3,0.00023835,2]
[363190987,1748619104725,-420.0,0.00023835,2]
[363190988,1748619104735,-853.41,0.00023835,2]
[363190989,1748619104745,-420.0,0.00023835,2]
[363190990,1748619104754,-420.0,0.00023835,2]
[363190991,1748619104763,-525.07,0.00023835,2]
[363190992,1748619104776,-420.0,0.00023835,2]
[363190993,1748619104785,-502.76,0.00023835,2]
[363190994,1748619104795,-1167.56,0.00023835,2]
[363190995,1748619104808,-769.78,0.00023835,2]
[363190996,1748619104817,-499.23,0.00023835,2]
[363190997,1748619104826,-420.0,0.00023835,2]
[363190998,1748619104837,-531.83,0.00023835,2]
[363190999,1748619104846,-420.0,0.00023835,2]
[363191000,1748619104856,-479.53,0.00023835,2]
[363191001,1748619104865,-753.24,0.00023835,2]
[363191002,1748619104875,-265.73,0.00023835,2]
[363191003,1748619104886,-476.72,0.00023835,2]
[363191004,1748619104897,-420.0,0.00023835,2]
[363191005,1748619104907,-571.1,0.00023835,2]
[363191006,1748619104916,-420.0,0.00023835,2]
[363191007,1748619104925,-908.97,0.00023835,2]
[363191008,1748619104934,-420.0,0.00023835,2]
[363191009,1748619104944,-420.0,0.00023835,2]
[363191010,1748619104954,-420.0,0.00023835,2]
[363191011,1748619104963,-420.0,0.00023835,2]
[363191012,1748619104973,-432.46,0.00023835,2]
[363191013,1748619104983,-420.0,0.00023835,2]
[363191014,1748619104992,-420.0,0.00023835,2]
[363191015,1748619105002,-420.0,0.00023835,2]
[363191016,1748619105011,-420.0,0.00023835,2]
[363191017,1748619105020,-420.0,0.00023835,2]
[363191018,1748619105032,-2098.6,0.00023835,2]
[363191019,1748619105041,-490.07,0.00023835,2]
[363191020,1748619105051,-420.0,0.00023835,2]
[363191021,1748619105060,-420.0,0.00023835,2]
[363191022,1748619105069,-770.69,0.00023835,2]
[363191023,1748619105078,-420.0,0.00023835,2]
[363191024,1748619105087,-890.15,0.00023835,2]
[363191025,1748619105096,-420.0,0.00023835,2]
[363191026,1748619105106,-420.86,0.00023835,2]
[363191027,1748619105116,-426.87,0.00023835,2]
[363191028,1748619105127,-420.0,0.00023835,2]
[363191029,1748619105140,-420.0,0.00023835,2]
[363191030,1748619105151,-424.91,0.00023835,2]